bitfinex/quotes_SOLUSD_20241101
["timestamp","ask_amount","ask_price","bid_price","bid_amount"]
[1730439505823,10.14490822,167.11,167.08,14.9621]
[1730439506025,10.14490822,167.09,167.05,27.6542]
[1730439507051,10.14490822,167.1,167.05,27.6542]
[1730439508824,10.14490822,167.09,167.05,27.6542]
[1730439511349,10.14490822,167.08,167.05,27.6542]
[1730439512350,10.14490822,167.09,167.05,27.6542]
[1730439514165,10.14490822,167.1,167.05,27.6542]
[1730439517460,10.14490822,167.08,167.05,27.6542]
[1730439518370,10.14490822,167.09,167.05,27.6542]
[1730439518859,10.14490822,167.1,167.05,27.6542]
[1730439523875,10.14490822,167.08,167.05,21.3321]
[1730439524759,11.18493048,167.08,167.05,21.3321]
[1730439529259,1.04002226,167.08,167.05,21.3321]
[1730439529473,10.14490822,167.09,167.05,21.3321]
[1730439531056,10.14490822,167.08,167.05,21.3321]
[1730439535282,10.14490822,167.09,167.05,21.3321]
[1730439541075,10.14490822,167.08,167.05,21.3321]
[1730439542366,10.14490822,167.09,167.05,21.3321]
[1730439543786,10.14490822,167.11,167.05,46.44250822]
[1730439544090,11.76403744,167.14,167.07,10.14490822]
[1730439544091,10.14490822,167.12,167.07,10.14490822]
[1730439544980,10.14490822,167.12,167.07,16.13030822]
[1730439545485,10.14490822,167.12,167.07,5.9854]
[1730439545877,10.14490822,167.11,167.07,5.9854]
[1730439552776,10.14490822,167.12,167.07,5.9854]
[1730439555079,20.0,167.13,167.09,10.14490822]
[1730439555690,20.0,167.13,167.08,10.14490822]
[1730439556773,20.0,167.13,167.09,5.9847]
[1730439557699,10.14490822,167.14,167.09,10.14490822]
[1730439557880,10.14490822,167.14,167.08,10.14490822]
[1730439558985,10.14490822,167.14,167.09,5.9847]
[1730439561496,10.14490822,167.11,167.07,20.9489]
[1730439561801,10.14490822,167.1,167.07,20.9489]
[1730439562195,10.14490822,167.11,167.07,20.9489]
[1730439562574,10.14490822,167.11,167.07,14.9637]
[1730439564101,10.14490822,167.11,167.07,20.9492]
[1730439565521,1.03980138,167.1,167.07,20.9492]
[1730439566409,10.14490822,167.11,167.07,20.9492]
[1730439576592,10.14490822,167.12,167.07,20.9492]
[1730439584411,1.13980138,167.17,167.07,20.9492]
[1730439584412,10.14490822,167.13,167.07,31.09410822]
[1730439584595,20.0,167.13,167.09,25.10680822]
[1730439584796,10.14490822,167.15,167.09,25.10680822]
[1730439586215,10.14490822,167.14,167.09,25.10680822]
[1730439586410,10.14490822,167.14,167.09,31.09150822]
[1730439587304,10.14490822,167.14,167.09,14.9619]
[1730439588913,10.14490822,167.14,167.09,20.9466]
[1730439590100,10.14490822,167.13,167.09,20.9466]
[1730439599225,10.14490822,167.13,167.07,10.14490822]
[1730439600826,10.14490822,167.14,167.08,10.14490822]
[1730439601323,10.14490822,167.12,167.09,5.9847]
[1730439603257,10.14490822,167.12,167.07,20.9492]
[1730439603639,10.14490822,167.11,167.07,14.9637]
[1730439603852,10.14490822,167.09,167.07,14.9637]
[1730439604019,10.14490822,167.1,167.07,14.9637]
[1730439604218,10.14490822,167.09,167.07,14.9637]
[1730439604841,10.14490822,167.08,167.04,5.9863]
[1730439605032,10.14490822,167.06,167.04,5.9863]
[1730439605229,10.14490822,167.07,167.04,5.9863]
[1730439606232,10.14490822,167.07,167.03,14.967]
[1730439606625,10.14490822,167.06,167.03,14.967]
[1730439606836,10.14490822,167.05,167.03,14.967]
[1730439607937,10.14490822,167.06,167.03,14.967]
[1730439619567,10.14490822,167.05,167.03,14.967]
[1730439621763,10.14490822,167.04,167.0,0.073172]
[1730439621981,10.14490822,167.02,167.0,0.073172]
[1730439622167,10.14490822,167.01,167.0,0.073172]
[1730439622979,30.14490822,167.01,167.0,0.073172]
[1730439624668,53.92179222,167.01,167.0,0.073172]
[1730439626596,75.49094484,167.01,167.0,0.073172]
[1730439627282,43.776884,167.0,166.96,0.3589111]
[1730439627469,30.14490822,166.97,166.96,0.3589111]
[1730439629488,31.18438511,166.97,166.96,0.3589111]
[1730439632169,54.96126911,166.97,166.96,0.3589111]
[1730439633387,31.18438511,166.97,166.96,0.3589111]
[1730439670191,11.18438511,166.97,166.96,0.3589111]
[1730439679409,1.03947689,166.97,166.96,6.3483111]
[1730439679608,20.0,166.99,166.96,6.3483111]
[1730439681621,30.14490822,166.99,166.96,6.3483111]
[1730439683720,0.34,166.97,166.96,6.3483111]
[1730439687125,0.34,166.98,166.96,6.3483111]
[1730439691024,10.14490822,167.0,166.96,6.3483111]
[1730439692821,10.14490822,167.01,166.96,6.3483111]
[1730439693205,20.0,167.01,166.97,10.14490822]
[1730439693405,20.0,167.01,166.98,16.28780822]
[1730439693612,10.14490822,167.03,166.98,16.28780822]
[1730439695224,10.14490822,167.03,166.98,22.27630822]
[1730439695523,10.14490822,167.04,166.98,37.24810822]
[1730439695725,20.0,167.03,166.99,15.0238]
[1730439696119,1.04130326,167.05,167.01,10.14490822]
[1730439696322,1.04130326,167.05,167.02,10.14490822]
[1730439696507,20.0,167.06,167.02,10.14490822]
[1730439697119,10.14490822,167.07,167.02,5.9873]
[1730439698210,10.14490822,167.06,167.02,5.9873]
[1730439698824,10.14490822,167.04,167.01,14.969]
[1730439700532,10.14490822,167.05,167.01,20.9566]
[1730439701738,10.14490822,167.06,167.01,20.9566]
[1730439703127,10.14490822,167.06,167.01,25.11390822]
[1730439704312,10.14490822,167.06,167.01,31.10150822]
[1730439705623,10.14490822,167.08,167.02,10.14490822]
[1730439705828,31.18602526,167.09,167.03,16.18880822]
[1730439706023,31.18602526,167.09,167.04,10.14490822]
[1730439706333,31.18602526,167.09,167.04,26.34490822]
[1730439708146,31.18602526,167.09,167.04,32.33130822]
[1730439710939,31.18602526,167.09,167.04,22.1864]
[1730439711837,10.14490822,167.08,167.04,22.1864]
[1730439714456,10.14490822,167.07,167.04,22.1864]
[1730439719256,1.04103459,167.06,167.04,22.1864]
[1730439724539,11.18594281,167.06,167.01,14.969]
[1730439724858,10.14490822,167.05,167.01,20.9566]
[1730439726247,1.04103459,167.06,167.01,31.10150822]
[1730439726964,1.04103459,167.06,167.02,10.14490822]
[1730439729264,1.04103459,167.06,167.01,31.10150822]
[1730439730462,11.18594281,167.06,167.01,31.10150822]
[1730439732456,1.04103459,167.06,167.01,31.10150822]
[1730439739269,11.18594281,167.06,167.01,20.9566]
[1730439749663,10.14490822,167.05,167.01,14.969]
[1730439749874,10.14490822,167.04,167.0,5.9877]
[1730439750763,10.14490822,167.04,166.99,28.0429]
[1730439752073,10.14490822,167.03,166.99,5.9883]
[1730439752571,10.14490822,167.02,166.97,20.9606]
[1730439752758,10.14490822,167.01,166.97,20.9606]
[1730439752952,11.18619651,167.01,166.97,20.9606]
[1730439754854,1.04128829,167.01,166.97,20.9606]
[1730439757952,10.14490822,167.0,166.97,14.9719]
[1730439758176,10.14490822,166.99,166.97,14.9719]
[1730439758674,10.14490822,166.98,166.97,14.9719]
[1730439758872,10.14490822,166.99,166.97,14.9719]
[1730439760071,10.14490822,167.0,166.97,14.9719]
[1730439760859,9.98268284,167.0,166.97,14.9719]
[1730439762182,21.04128829,167.01,166.98,10.14490822]
[1730439762549,1.04128829,167.01,166.98,10.14490822]
[1730439763376,1.04128829,167.01,166.98,16.13350822]
[1730439763572,1.04128829,167.01,167.0,10.14490822]
[1730439763870,1.04128829,167.01,167.0,25.31040822]
[1730439764965,1.04128829,167.01,167.0,31.65019822]
[1730439765159,10.14490822,167.11,167.0,55.42708222]
[1730439765484,11.18577504,167.12,167.06,10.14490822]
[1730439765775,10.14490822,167.11,167.06,10.14490822]
[1730439766475,10.14490822,167.11,167.06,16.13070822]
[1730439768360,20.0,167.11,167.07,10.14490822]
[1730439769075,20.0,167.12,167.07,10.14490822]
[1730439769377,10.14490822,167.12,167.07,10.14490822]
[1730439769673,20.0,167.11,167.07,16.13030822]
[1730439769978,10.14490822,167.13,167.07,16.13030822]
[1730439770172,20.0,167.12,167.07,16.13030822]
[1730439772877,10.14490822,167.12,167.07,16.13030822]
[1730439774773,10.14490822,167.12,167.07,5.9854]
[1730439774981,10.14490822,167.11,167.07,5.9854]
[1730439780485,10.14490822,167.12,167.07,5.9854]
[1730439785992,10.14490822,167.11,167.07,5.9854]
[1730439787278,20.0,167.12,167.07,31.09400822]
[1730439787476,21.0407951,167.14,167.1,10.14490822]
[1730439787703,31.18570332,167.14,167.09,10.14490822]
[1730439787897,11.18570332,167.14,167.09,10.14490822]
[1730439788783,11.18570332,167.14,167.09,16.12940822]
[1730439791307,11.18570332,167.14,167.08,10.14490822]
[1730439793101,11.18570332,167.14,167.09,10.14490822]
[1730439793307,1.0407951,167.14,167.09,10.14490822]
[1730439793596,21.0407951,167.14,167.09,10.14490822]
[1730439795310,21.0407951,167.14,167.09,16.12940822]
[1730439795906,1.0407951,167.14,167.09,16.12940822]
[1730439796796,1.0407951,167.14,167.1,10.14490822]
[1730439797610,0.0407951,167.14,167.1,10.14490822]
[1730439797792,10.14490822,167.15,167.1,10.14490822]
[1730439802097,10.14490822,167.15,167.09,16.12940822]
[1730439804707,10.14490822,167.16,167.11,10.14490822]
[1730439805691,10.14490822,167.16,167.11,31.08880822]
[1730439805896,10.14490822,167.17,167.11,31.08880822]
[1730439806097,20.0,167.16,167.11,31.08880822]
[1730439806607,20.0,167.16,167.12,10.14490822]
[1730439806786,20.0,167.17,167.12,10.14490822]
[1730439807405,20.0,167.17,167.12,16.12850822]
[1730439811517,1.04060574,167.18,167.14,10.14490822]
[1730439812526,1.04060574,167.18,167.14,16.12760822]
[1730439813321,1.04060574,167.18,167.14,31.08510822]
[1730439816312,1.04060574,167.18,167.15,10.14490822]
[1730439817502,1.04060574,167.18,167.16,5.9822]
[1730439821318,1.04015299,167.2,167.16,10.14490822]
[1730439821525,1.04015299,167.2,167.17,10.14490822]
[1730439821890,10.14490822,167.22,167.17,10.14490822]
[1730439824824,10.14490822,167.22,167.17,16.12660822]
[1730439826208,10.14490822,167.23,167.18,10.14490822]
[1730439836514,20.0,167.23,167.18,16.12640822]
[1730439837512,10.14490822,167.23,167.18,16.12640822]
[1730439840132,10.14490822,167.21,167.17,5.9818]
[1730439840437,10.14490822,167.2,167.16,21.911]
[1730439840607,10.14490822,167.2,167.16,27.8932]
[1730439845255,1.04025595,167.19,167.16,15.6324]
[1730439845413,11.18516417,167.19,167.14,31.08510822]
[1730439845731,11.18516417,167.19,167.14,20.9402]
[1730439850215,11.18516417,167.19,167.14,25.10240822]
[1730439851638,11.18516417,167.19,167.14,31.08540822]
[1730439855043,10.14490822,167.19,167.14,31.08540822]
[1730439856945,10.14490822,167.19,167.14,14.9575]
[1730439858049,10.14490822,167.19,167.14,20.9405]
[1730439858745,10.14490822,167.18,167.14,20.9405]
[1730439860034,10.14490822,167.18,167.14,14.9575]
[1730439861550,10.14490822,167.15,167.11,6.24306091]
[1730439861848,10.14490822,167.15,167.11,5.984]
[1730439864032,10.14490822,167.15,167.1,20.9449]
[1730439864245,10.14490822,167.15,167.1,31.08980822]
[1730439870150,0.1,167.2,167.11,10.14490822]
[1730439870151,10.14490822,167.16,167.11,10.14490822]
[1730439871128,10.14490822,167.16,167.11,16.12880822]
[1730439873152,10.14490822,167.15,167.1,25.10540822]
[1730439875071,10.14490822,167.15,167.1,31.08980822]
[1730439878355,11.18543916,167.15,167.1,31.08980822]
[1730439879568,1.04053094,167.15,167.1,31.08980822]
[1730439881967,11.18543916,167.15,167.1,31.08980822]
[1730439884663,11.18543916,167.15,167.1,14.9605]
[1730439886247,11.18543916,167.15,167.1,20.9449]
[1730439890959,10.14490822,167.15,167.1,20.9449]
[1730439893066,10.14490822,167.15,167.1,14.9605]
[1730439895979,10.14490822,167.15,167.1,20.9449]
[1730439898450,10.14490822,167.16,167.1,25.10540822]
[1730439898851,10.14490822,167.17,167.11,10.14490822]
[1730439899975,10.14490822,167.16,167.11,5.984]
[1730439902159,11.1854119,167.18,167.13,10.14490822]
[1730439902360,20.0,167.18,167.13,10.14490822]
[1730439902866,30.14490822,167.18,167.13,10.14490822]
[1730439903073,30.14490822,167.18,167.13,16.12810822]
[1730439903978,10.14490822,167.17,167.13,5.9832]
[1730439904288,10.14490822,167.16,167.11,25.10510822]
[1730439905559,10.14490822,167.15,167.11,20.9442]
[1730439907177,10.14490822,167.16,167.11,20.9442]
[1730439907380,10.14490822,167.17,167.11,25.10510822]
[1730439908984,10.14490822,167.17,167.11,31.08910822]
[1730439916400,11.18536582,167.18,167.12,10.14490822]
[1730439917269,10.14490822,167.17,167.12,10.14490822]
[1730439917485,10.14490822,167.17,167.11,31.08910822]
[1730439919286,10.14490822,167.16,167.11,20.9442]
[1730439926471,11.18531163,167.16,167.11,20.9442]
[1730439928583,10.14490822,167.15,167.09,10.14490822]
[1730439928891,10.14490822,167.13,167.09,5.9844]
[1730439929089,10.14490822,167.14,167.09,16.12930822]
[1730439930580,10.14490822,167.15,167.1,10.14490822]
[1730439930786,10.14490822,167.13,167.08,22.768]
[1730439931099,10.14490822,167.13,167.08,28.7531]
[1730439931596,10.14490822,167.13,167.08,38.89800822]
[1730439931783,10.14490822,167.14,167.09,10.14490822]
[1730439935683,10.14490822,167.14,167.08,38.89800822]
[1730439938504,10.14490822,167.15,167.09,10.14490822]
[1730439939906,10.14490822,167.15,167.09,16.12960822]
[1730439940895,10.14490822,167.15,167.09,5.9847]
[1730439941095,10.14490822,167.14,167.09,5.9847]
[1730439941817,10.14490822,167.15,167.09,16.12960822]
[1730439942015,11.1855421,167.16,167.1,10.14490822]
[1730439942210,20.0,167.16,167.11,10.14490822]
[1730439942607,30.14490822,167.16,167.1,10.14490822]
[1730439943500,10.14490822,167.15,167.09,31.09150822]
[1730439944705,30.14490822,167.16,167.1,10.14490822]
[1730439944911,30.14490822,167.16,167.11,5.984]
[1730439946823,10.14490822,167.16,167.11,5.984]
[1730439947028,10.14490822,167.18,167.12,10.14490822]
[1730439947206,11.18537699,167.19,167.14,10.14490822]
[1730439947398,10.824,167.23,167.14,10.14490822]
[1730439947399,10.14490822,167.2,167.14,10.14490822]
[1730439947806,10.14490822,167.19,167.14,10.14490822]
[1730439948926,10.14490822,167.19,167.14,16.12780822]
[1730439952724,10.14490822,167.2,167.15,10.14490822]
[1730439952909,10.14490822,167.22,167.16,10.14490822]
[1730439953229,10.14490822,167.22,167.17,10.14490822]
[1730439953601,10.14490822,167.21,167.16,10.14490822]
[1730439954623,10.14490822,167.21,167.16,16.12680822]
[1730439956412,10.14490822,167.22,167.17,10.14490822]
[1730439958210,10.14490822,167.21,167.16,5.982]
[1730439958424,10.14490822,167.2,167.16,5.982]
[1730439958932,10.14490822,167.2,167.14,10.14490822]
[1730439959141,10.14490822,167.2,167.15,31.08410822]
[1730439959919,10.14490822,167.21,167.15,31.08410822]
[1730439960122,10.14490822,167.21,167.16,10.14490822]
[1730439960324,10.14490822,167.21,167.15,25.10150822]
[1730439961113,10.14490822,167.21,167.16,10.14490822]
[1730439961510,10.14490822,167.21,167.15,31.08410822]
[1730439967847,10.14490822,167.18,167.15,14.9566]
[1730439970947,10.14490822,167.15,167.11,14.9597]
[1730439971825,10.14490822,167.16,167.11,14.9597]
[1730439973338,10.14490822,167.15,167.11,14.9597]
[1730439973524,10.14490822,167.14,167.11,14.9597]
[1730439973723,10.14490822,167.14,167.09,16.44080822]
[1730439973945,10.14490822,167.14,167.09,22.42530822]
[1730439974319,10.14490822,167.14,167.09,37.38720822]
[1730439974749,10.14490822,167.14,167.09,27.2423]
[1730439975542,10.14490822,167.15,167.09,37.38720822]
[1730439977942,10.14490822,167.14,167.09,37.38720822]
[1730439978152,10.14490822,167.15,167.09,37.38720822]
[1730439981148,10.14490822,167.14,167.09,27.2423]
[1730439982554,10.14490822,167.16,167.1,10.14490822]
[1730439983426,10.14490822,167.16,167.11,10.14490822]
[1730439983627,10.14490822,167.17,167.11,10.14490822]
[1730439983829,10.14490822,167.17,167.12,5.9837]
[1730439985235,10.14490822,167.16,167.12,5.9837]
[1730439988045,10.14490822,167.19,167.13,10.14490822]
[1730439988252,1.0402613,167.18,167.14,10.14490822]
[1730439988552,10.14490822,167.2,167.15,10.14490822]
[1730439988757,10.14490822,167.2,167.14,16.19610822]
[1730439989957,10.14490822,167.19,167.14,22.17890822]
[1730439991854,10.14490822,167.19,167.14,12.034]
[1730439993254,24.81715671,167.25,167.13,15.7229]
[1730439993255,10.14490822,167.16,167.13,15.7229]
[1730439993644,10.14490822,167.15,167.12,14.9593]
[1730439994347,10.14490822,167.15,167.11,5.984]
[1730439995940,10.14490822,167.16,167.11,16.12890822]
[1730439996745,10.14490822,167.17,167.12,10.14490822]
[1730439997867,10.14490822,167.18,167.12,10.14490822]
[1730439998156,10.14490822,167.18,167.13,10.14490822]
[1730439999769,10.14490822,167.18,167.12,10.14490822]
[1730440001550,10.14490822,167.17,167.11,16.12890822]
[1730440001965,10.14490822,167.17,167.12,10.14490822]
[1730440002347,10.14490822,167.18,167.13,10.14490822]
[1730440003570,10.14490822,167.18,167.13,16.12810822]
[1730440006042,10.14490822,167.2,167.14,10.14490822]
[1730440006462,10.14490822,167.19,167.13,31.08650822]
[1730440011777,11.18514098,167.19,167.13,31.08650822]
[1730440016382,1.04023276,167.19,167.15,10.14490822]
[1730440017376,10.14490822,167.22,167.17,10.14490822]
[1730440017974,10.14490822,167.23,167.17,10.14490822]
[1730440018859,10.14490822,167.23,167.17,16.12670822]
[1730440019059,10.14490822,167.22,167.17,5.9818]
[1730440021179,10.14490822,167.22,167.17,16.12670822]
[1730440021387,10.14490822,167.23,167.17,16.12670822]
[1730440021883,10.14490822,167.21,167.16,16.12710822]
[1730440022087,10.14490822,167.22,167.16,16.12710822]
[1730440025986,23.776884,167.25,167.16,5.9822]
[1730440025987,10.14490822,167.21,167.16,5.9822]
[1730440027794,10.14490822,167.19,167.15,22.7659]
[1730440029084,10.14490822,167.19,167.15,28.7485]
[1730440029397,10.14490822,167.18,167.14,5.9829]
[1730440030001,10.14490822,167.18,167.13,21.20283902]
[1730440030181,10.14490822,167.18,167.13,27.18613902]
[1730440034007,10.14490822,167.15,167.11,29.0132]
[1730440035407,10.14490822,167.16,167.11,39.15810822]
[1730440037311,10.14490822,167.18,167.12,10.14490822]
[1730440037996,10.724,167.21,167.12,10.14490822]
[1730440037997,10.14490822,167.17,167.12,10.14490822]
[1730440038703,10.14490822,167.17,167.11,39.15810822]
[1730440040910,11.18533645,167.17,167.11,39.15810822]
[1730440044916,1.04042823,167.17,167.13,10.14490822]
[1730440045292,10.14490822,167.18,167.13,10.14490822]
[1730440047004,10.14490822,167.18,167.13,16.12820822]
[1730440047596,10.14490822,167.16,167.13,5.9833]
[1730440048014,10.14490822,167.15,167.13,5.9833]
[1730440048897,10.14490822,167.15,167.11,37.9894]
[1730440049312,10.14490822,167.15,167.11,43.9734]
[1730440051131,10.14490822,167.12,167.09,5.9845]
[1730440051297,10.14490822,167.11,167.07,42.99]
[1730440051910,10.14490822,167.12,167.07,42.99]
[1730440052199,10.14490822,167.12,167.07,53.13490822]
[1730440052919,10.14490822,167.13,167.08,10.14490822]
[1730440054728,10.14490822,167.12,167.08,5.985]
[1730440055407,10.14490822,167.11,167.07,37.0047]
[1730440056710,10.14490822,167.11,167.07,42.9902]
[1730440056917,10.14490822,167.12,167.07,42.9902]
[1730440059920,10.14490822,167.12,167.07,53.13510822]
[1730440060121,10.14490822,167.13,167.07,53.13510822]
[1730440063932,10.14490822,167.12,167.07,42.9902]
[1730440064429,10.14490822,167.13,167.07,53.13510822]
[1730440068612,1.04074418,167.12,167.07,53.13510822]
[1730440069031,11.1856524,167.12,167.07,42.9902]
[1730440071728,10.14490822,167.1,167.07,15.7425]
[1730440071909,1.04074418,167.12,167.05,5.9861]
[1730440071910,10.14490822,167.08,167.05,5.9861]
[1730440072116,10.14490822,167.09,167.05,5.9861]
[1730440072612,10.14490822,167.1,167.05,16.13100822]
[1730440074827,10.14490822,167.1,167.05,5.9861]
[1730440075524,10.14490822,167.08,167.05,5.9861]
[1730440075729,10.14490822,167.06,167.03,6.24833041]
[1730440075956,10.14490822,167.04,167.02,15.7194]
[1730440076119,10.14490822,167.05,167.02,15.7194]
[1730440076434,10.14490822,167.04,167.02,15.7194]
[1730440077339,10.14490822,167.03,167.0,6.2473735]
[1730440077514,10.14490822,167.01,166.97,37.4705]
[1730440077836,10.14490822,167.01,166.97,31.4815]
[1730440078537,10.14490822,167.0,166.97,31.4815]
[1730440079936,10.14490822,166.99,166.96,0.3589111]
[1730440081545,10.14490822,166.98,166.96,0.3589111]
[1730440081743,10.14490822,166.97,166.96,0.3589111]
[1730440088941,11.18664566,166.97,166.96,0.3589111]
[1730440095134,10.14490822,166.99,166.96,0.3589111]
[1730440095553,10.14490822,166.97,166.96,0.3589111]
[1730440104760,10.14490822,166.98,166.96,0.3589111]
[1730440104942,10.14490822,166.97,166.96,0.3589111]
[1730440106143,30.14490822,166.97,166.96,0.3589111]
[1730440106746,53.92179222,166.97,166.96,0.3589111]
[1730440114757,10.14490822,166.97,166.96,0.3589111]
[1730440129183,33.92179222,166.97,166.96,0.3589111]
[1730440129357,53.92179222,166.97,166.96,0.3589111]
[1730440135390,83.92179222,166.97,166.96,0.3589111]
[1730440136083,84.96367374,166.97,166.96,0.3589111]
[1730440144277,125.54330662,166.97,166.96,0.3589111]
[1730440144481,125.64330662,166.97,166.96,1.11e-05]
[1730440146484,43.776884,166.96,166.88,22.6062]
[1730440146685,10.14490822,166.9,166.88,22.6062]
[1730440153294,10.14490822,166.91,166.88,22.6062]
[1730440156292,11.18642554,166.91,166.88,22.6062]
[1730440159186,10.14490822,166.92,166.88,22.6062]
[1730440160793,10.14490822,166.93,166.88,38.74330822]
[1730440161107,10.14490822,166.94,166.88,38.74330822]
[1730440161308,10.14490822,166.93,166.88,38.74330822]
[1730440165020,10.14490822,166.95,166.9,10.14490822]
[1730440165186,11.18565794,166.96,166.91,10.14490822]
[1730440165385,10.14490822,166.96,166.91,10.14490822]
[1730440171596,10.14490822,166.96,166.9,10.14490822]
[1730440173313,10.14490822,166.96,166.9,16.13630822]
[1730440174593,10.14490822,166.95,166.9,16.13630822]
[1730440178828,10.14490822,166.96,166.91,10.14490822]
[1730440180122,10.14490822,166.97,166.91,10.14490822]
[1730440182029,10.14490822,166.96,166.91,10.14490822]
[1730440182502,10.14490822,166.96,166.9,16.13630822]
[1730440185118,10.14490822,166.96,166.91,10.14490822]
[1730440185924,11.18596477,166.96,166.91,10.14490822]
[1730440187731,10.14490822,166.96,166.91,10.14490822]
[1730440192021,10.14490822,166.97,166.92,10.14490822]
[1730440203440,10.14490822,166.97,166.91,10.14490822]
[1730440206435,10.14490822,166.97,166.9,10.14490822]
[1730440207019,10.14490822,166.96,166.9,10.14490822]
[1730440208128,10.14490822,166.96,166.9,16.13630822]
[1730440209835,10.14490822,166.96,166.91,10.14490822]
[1730440210336,10.14490822,166.98,166.92,10.14490822]
[1730440211022,10.14490822,166.98,166.93,10.14490822]
[1730440211541,1.04037418,166.97,166.93,10.14490822]
[1730440214333,1.04037418,166.97,166.92,10.14490822]
[1730440214942,11.1852824,166.97,166.92,10.14490822]
[1730440221042,11.1852824,166.97,166.91,16.13580822]
[1730440222043,1.04037418,166.97,166.92,10.14490822]
[1730440224446,11.1852824,166.97,166.91,16.13580822]
[1730440227244,10.14490822,166.97,166.91,16.13580822]
[1730440228151,10.14490822,166.98,166.92,10.14490822]
[1730440231056,10.14490822,166.97,166.91,16.13600822]
[1730440233239,10.14490822,166.98,166.92,10.14490822]
[1730440235549,10.14490822,166.98,166.92,16.13570822]
[1730440236064,10.14490822,166.98,166.92,10.14490822]
[1730440236559,10.14490822,166.98,166.91,16.13600822]
[1730440239388,10.14490822,166.98,166.92,10.14490822]
[1730440240681,10.14490822,167.01,166.94,10.14490822]
[1730440240888,20.0,167.01,166.96,10.14490822]
[1730440241371,10.14490822,167.02,166.96,10.14490822]
[1730440242478,10.14490822,167.01,166.95,10.14490822]
[1730440242778,10.14490822,166.99,166.94,6.2732]
[1730440243782,10.14490822,166.98,166.94,6.2732]
[1730440245182,10.14490822,166.97,166.93,15.9218]
[1730440245374,10.14490822,166.96,166.91,16.13590822]
[1730440246085,10.14490822,166.97,166.91,16.13590822]
[1730440246381,10.14490822,166.97,166.92,10.14490822]
[1730440246785,10.14490822,166.98,166.92,10.14490822]
[1730440249163,10.14490822,166.97,166.92,10.14490822]
[1730440249574,10.14490822,166.97,166.91,16.13590822]
[1730440249781,10.14490822,166.97,166.92,10.14490822]
[1730440250488,11.1860223,166.97,166.92,10.14490822]
[1730440252401,11.1860223,166.97,166.91,5.991]
[1730440252402,11.1860223,166.97,166.91,16.13590822]
[1730440252778,10.14490822,166.96,166.91,16.13590822]
[1730440253190,11.1860223,166.97,166.91,16.13590822]
[1730440262312,10.14490822,166.95,166.9,6.2732]
[1730440262484,10.14490822,166.94,166.89,15.9218]
[1730440262679,10.14490822,166.93,166.88,6.24769958]
[1730440262893,10.14490822,166.92,166.87,16.13720822]
[1730440263090,10.14490822,166.93,166.87,16.13720822]
[1730440263805,10.14490822,166.93,166.88,10.14490822]
[1730440264312,10.14490822,166.93,166.87,16.13720822]
[1730440265197,10.14490822,166.94,166.88,10.14490822]
[1730440267185,10.14490822,166.93,166.88,10.14490822]
[1730440267599,10.14490822,166.94,166.88,10.14490822]
[1730440267797,10.14490822,166.98,166.92,10.14490822]
[1730440268116,10.14490822,166.97,166.92,10.14490822]
[1730440268288,10.14490822,166.97,166.91,10.14490822]
[1730440269021,10.14490822,166.95,166.9,25.96990822]
[1730440269325,10.14490822,166.94,166.9,15.825]
[1730440270312,10.14490822,166.94,166.88,25.12570822]
[1730440270816,10.14490822,166.93,166.88,25.12570822]
[1730440274016,23.776884,166.97,166.89,10.14490822]
[1730440274017,10.14490822,166.94,166.89,10.14490822]
[1730440279210,10.14490822,166.93,166.88,10.14490822]
[1730440279530,23.776884,166.97,166.86,32.31530822]
[1730440279531,10.14490822,166.91,166.86,32.31530822]
[1730440280028,10.14490822,166.9,166.86,22.1704]
[1730440280408,10.14490822,166.91,166.86,32.31530822]
[1730440280611,10.14490822,166.92,166.86,32.31530822]
[1730440281817,10.14490822,166.92,166.87,10.14490822]
[1730440283431,10.14490822,166.92,166.86,32.31530822]
[1730440285034,10.14490822,166.91,166.86,32.31530822]
[1730440285422,10.14490822,166.91,166.86,22.1704]
[1730440285826,10.14490822,166.9,166.86,22.1704]
[1730440286716,10.14490822,166.89,166.86,15.825]
[1730440288318,10.14490822,166.89,166.84,25.12860822]
[1730440292845,11.18713918,166.9,166.84,25.12860822]
[1730440294131,11.18713918,166.9,166.85,10.14490822]
[1730440295337,1.04223096,166.9,166.85,10.14490822]
[1730440298045,10.14490822,166.91,166.85,10.14490822]
[1730440298346,10.14490822,166.9,166.85,10.14490822]
[1730440301121,10.14490822,166.9,166.84,25.12860822]
[1730440309030,10.14490822,166.89,166.84,25.12860822]
[1730440310651,10.14490822,166.89,166.84,14.9837]
[1730440311650,10.14490822,166.89,166.84,25.12860822]
[1730440315143,10.14490822,166.9,166.84,25.12860822]
[1730440318454,1.04203969,166.89,166.84,25.12860822]
[1730440325439,10.14490822,166.9,166.84,25.12860822]
[1730440326748,10.14490822,166.89,166.83,10.14490822]
[1730440327264,1.14211826,166.93,166.83,10.14490822]